Cogmind - Beta 16 @@@ ROGUE MODE // 2026.01.01 @ 21:43:47 Player: C4PT41N Result: Destroyed by as-16873 with Assembled Heavy Rifle Performance ------------- Evolutions (0) 0 Regions Visited (2) 400 Robots Destroyed (9) 45 Value Destroyed (348) 348 Prototype IDs (0) 0 Alien Tech Used (0) 0 Bonus (0) 0 TOTAL SCORE: 793 Bonus ------- None Cogmind --------- Core Integrity 0/250 Matter 160/300 Energy 100/100 System Corruption 6% Temperature Cool (20) Movement Rolling (95) Ox1 Location -10/Mines Parts ------- > --- POWER (1) -------- (None) > --- PROPULSION (2) --- Wheel > --- UTILITY (2) ------ Medium Storage Unit Utility Shielding > --- WEAPON (2) ------- Mining Claw > --- INVENTORY (10) --- Aluminum Leg Small Storage Unit Seismic Detector Light Assault Rifle Datajack Mining Laser Peak State ------------ > --- POWER ------------ Light Ion Engine > --- PROPULSION ------- Aluminum Leg Aluminum Leg > --- UTILITY ---------- Small Storage Unit Tractor Beam > --- WEAPON ----------- Medium Laser Small Laser > --- INVENTORY -------- Light Ion Engine Light Treads Light Treads Wheel Wheel Small Laser Assault Rifle [Rating: 7] Favorites ----------- Power Light Ion Engine Engine Light Ion Engine Propulsion Aluminum Leg Leg Aluminum Leg Wheel Wheel Utility Small Storage Unit Device Tractor Beam Storage Small Storage Unit Protection Utility Shielding Weapon Grenade Launcher Energy Gun Small Laser Ballistic Gun Assault Rifle Launcher Grenade Launcher Slashing Weapon Mining Claw Build | -11 -10 -10 ------- Run | Yrd Mat Min Slots Evolved . | . . . Power . | . . . Propulsion . | . . . Utility . | . . . Weapon . | . . . Parts Attached 19 | 6 8 5 Power 3 | 1 1 1 Engine 3 | 1 1 1 Core . | . . . Reactor . | . . . Propulsion 4 | 2 . 2 Treads . | . . . Leg 2 | 2 . . Wheel 2 | . . 2 Hover . | . . . Flight . | . . . Utility 4 | 1 3 . Device 1 | . 1 . Storage 2 | 1 1 . Processor . | . . . Hackware . | . . . Protection 1 | . 1 . Artifact . | . . . Weapon 8 | 2 4 2 Energy Gun 2 | 2 . . Energy Cannon . | . . . Ballistic Gun 2 | . 2 . Ballistic Cannon . | . . . Launcher 3 | . 2 1 Special Weapon . | . . . Impact Weapon . | . . . Slashing Weapon 1 | . . 1 Piercing Weapon . | . . . Special Melee Weapon . | . . . Unidentified Prototypes . | . . . Parts Lost 11 | . 2 9 Power 3 | . 1 2 Propulsion 3 | . . 3 Utility 1 | . 1 . Weapon 4 | . . 4 Highest Loss Streak 5 | . 1 5 To Critical Strikes . | . . . Average Backups 6 | 3 7 6 Power . | . . . Propulsion 2 | 2 2 1 Utility . | . . 1 Weapon 2 | . 2 2 Tool/Special . | . . . Unused Backups 7 | . 3 4 Power . | . . . Propulsion 3 | . 2 1 Utility 1 | . . 1 Weapon 2 | . 1 1 Tool/Special 1 | . . 1 Average Slot Usage (%) 94 | . 97 89 Engine 13 | . 14 12 Leg 18 | . 28 3 Wheel 8 | . . 21 Device 3 | . 5 . Storage 14 | . 14 14 Protection 9 | . 6 14 Energy Gun 8 | . 13 . Ballistic Gun 1 | . . 1 Launcher 15 | . 13 17 Slashing Weapon 1 | . . 3 Peak Build Rating 7 | 6 7 7 Average Rating 6 | 5 6 6 On Entrance 4 | . 6 6 Avg Prop Armor Cover (%) 10 | . . 10 Naked Turns . | . . . Heaviest Build 20 | 11 20 20 Greatest Support 20 | 20 20 20 Greatest Overweight (x) 5 | 3 . 5 Average Overweight (x) . | . . . Largest Inventory Capacity 10 | 8 10 10 Average Capacity 8 | 7 8 10 Most Carried 9 | 6 9 8 Average Carried 6 | 3 7 6 Final Capacity 10 | 8 10 10 Final Carried 9 | 6 9 6 Class Distribution -------------------- 100% | Mutant Dominant Class ---------------- Mutant | -10/Materials Mutant | -10/Mines Resources | -11 -10 -10 ----------- Run | Yrd Mat Min Matter Collected 459 | 220 69 170 Remotely 41 | . 41 . Salvage Created 159 | . 159 . Parts 10 | . 8 2 Haulers Intercepted . | . . . Recyclers Shooed . | . . . Parts Field Recycled . | . . . Retrieved Matter . | . . . Parts Self-Destructed . | . . . Prevented . | . . . Parts Restored . | . . . Kills | -11 -10 -10 ------- Run | Yrd Mat Min Combat Hostiles Destroyed 11 | . 8 3 Melee 1 | . . 1 Guns 2 | . 2 . AOE 8 | . 6 2 Classes Destroyed 3 | . 1 2 Swarmer 1 | . . 1 Grunt 8 | . 8 . Assembled 2 | . . 2 Best Kill Streak 3 | . 3 2 Combat Bots Only 3 | . 3 2 Max Kills in Single Turn 2 | . 1 2 Gunslinging . | . . . Exploded 2 | . 1 2 Melee 1 | . . 1 Uniques/NPCs Destroyed . | . . . Combat | -11 -10 -10 -------- Run | Yrd Mat Min Hostile Shots Fired 124 | . 41 83 Missed 38 | . 17 21 Hits 86 | . 24 62 Melee 6 | . . 6 Projectile 80 | . 24 56 Critical Strikes 2 | . 1 1 Part Disruptions 1 | . . 1 Damage Taken 1059 | . 395 664 Core 255 | . 60 195 Absorbed by Shields . | . . . Redirected to Shielding 15 | . 3 12 Core Remaining (%) 100 | 100 . . Volleys Fired 26 | . 24 2 Largest 2 | . 2 1 Hottest 90 | . 90 30 Shots Fired 42 | . 40 2 Gun 16 | . 16 . Cannon . | . . . Launcher 26 | . 24 2 Special . | . . . Kinetic . | . . . Thermal 16 | . 16 . Explosive 26 | . 24 2 Electromagnetic . | . . . Robot Hit Streak 3 | . 3 . Robot Miss Streak 4 | . 4 1 Penetration Max . | . . . Secondary Targets . | . . . Shots Hit Robots 12 | . 10 2 Core Hits 29 | . 22 7 Critical Kills . | . . . Critical Parts Destroyed . | . . . Critical Strikes . | . . . Melee Attacks 7 | . . 7 Impact . | . . . Slashing 7 | . . 7 Piercing . | . . . Sneak Attacks . | . . . Combat Hostiles . | . . . Follow-up Attacks . | . . . Damage Inflicted 1077 | . 825 252 Guns 81 | . 81 . Cannons . | . . . Explosions 917 | . 738 179 Melee 53 | . . 53 Ramming 26 | . 6 20 Kinetic . | . . . Thermal 81 | . 81 . Explosive 917 | . 738 179 Electromagnetic . | . . . Impact . | . . . Slashing 53 | . . 53 Piercing . | . . . Highest Corruption 6 | . . 6 Average Corruption 3 | . . 3 Corruption Purged . | . . . Corruption Blocked . | . . . Overload Shots . | . . . Overflow Damage 34 | . 8 26 Projectiles . | . . . Explosions 34 | . 8 26 Melee . | . . . Knockbacks . | . . . Impact . | . . . Kinetic . | . . . Secondary . | . . . Self-Inflicted Damage 147 | . 107 40 Shots 5 | . 4 1 Rammed . | . . . Targets Rammed 10 | . 1 9 Kicked 10 | . 1 9 Crushed . | . . . Highest Temperature 207 | . 207 . Average Temperature 64 | . 64 . Received Heat Transfer 243 | . 183 60 Siege Activations . | . . . Martial Activations . | . . . Shielding Activations . | . . . Robots Disrupted . | . . . Combat Hostiles . | . . . Robots Corrupted . | . . . Combat Hostiles . | . . . Parts Fried . | . . . Impact Corruptions . | . . . Robots Melted . | . . . Combat Hostiles . | . . . Parts Melted . | . . . Heat Transferred 211 | . 211 . Parts Sabotaged . | . . . Parts Stolen . | . . . Parts Stripped . | . . . Power Chain Reactions . | . . . Alert | -11 -10 -10 ------- Run | Yrd Mat Min Maximum Alert Level . | . . . Low Security (%) 100 | 100 100 100 Level 1 . | . . . Level 2 . | . . . Level 3 . | . . . Level 4 . | . . . Level 5 . | . . . High Security . | . . . Max Security . | . . . Peak Influence 125 | . 125 37 Initial 37 | . . 37 Average 26 | . 46 2 Influence Increases 386 | . 345 41 Destroy 0b10 Robot/C 180 | . 160 20 Destroy Leader 40 | . 40 . Successful Hack 5 | . 5 . Disable Machine 60 | . 60 . Destroy Structure 101 | . 80 21 Influence Decreases 386 | . 248 138 Entered New Map 60 | . . 60 Time Decay 266 | . 228 38 Lost Part 60 | . 20 40 Squads Dispatched 2 | . 2 . Investigation 1 | . 1 . Extermination . | . . . Reinforcement 1 | . 1 . Assault . | . . . Garrison . | . . . Intercept . | . . . Searches Triggered . | . . . Construction Impeded . | . . . Haulers Reinforced . | . . . Active Scanning Responses . | . . . Cargo Convoy Interrupts . | . . . Stealth | -11 -10 -10 --------- Run | Yrd Mat Min Distress Signals . | . . . Communications Jammed . | . . . Distress Signals . | . . . Times Spotted 24 | . 14 10 Peak Tracking Total 8 | . 4 8 Tactical Retreats 1 | . . 1 Traps | -11 -10 -10 ------- Run | Yrd Mat Min Traps Triggered . | . . . Indirectly . | . . . Trap Hack Attempts . | . . . Triggered . | . . . Disarmed . | . . . Reprogrammed . | . . . Reused . | . . . Traps Extracted . | . . . Installed . | . . . Triggered . | . . . Machines | -11 -10 -10 ---------- Run | Yrd Mat Min Machines Disabled 4 | . 4 . Max in Single Turn 2 | . 2 . Machines Repaired . | . . . Machines Dismantled . | . . . Machines Sabotaged . | . . . Overloaded Fab Kills . | . . . Hacking | -11 -10 -10 --------- Run | Yrd Mat Min Machines Accessed 4 | . 4 . Terminals 3 | . 3 . Fabricators . | . . . Repair Stations . | . . . Recycling Units 1 | . 1 . Scanalyzers . | . . . Garrison Access . | . . . Total Hacks 9 | . 9 . Successful 5 | . 5 . Failed 4 | . 4 . Catastrophic . | . . . Database Lockouts . | . . . Manual 1 | . 1 . Terminals 8 | . 8 . Fabricators . | . . . Repair Stations . | . . . Recycling Units 1 | . 1 . Scanalyzers . | . . . Garrison Access . | . . . Terminal Hacks 3 | . 3 . Locate Traps 2 | . 2 . Zone Layout 1 | . 1 . Fabricator Hacks . | . . . Repair Station Hacks . | . . . Recycling Unit Hacks 1 | . 1 . Report Inventory 1 | . 1 . Scanalyzer . | . . . Garrison Access Hacks . | . . . Unauthorized Hacks 1 | . 1 . Terminals 1 | . 1 . Track 1 | . 1 . Fabricators . | . . . Repair Stations . | . . . Recycling Units . | . . . Scanalyzers . | . . . Garrison Access . | . . . Data Cores Recovered . | . . . Used . | . . . Hacking Detections 2 | . 2 . Full Trace Events 1 | . 1 . Feedback Events . | . . . Feedback Blocked . | . . . Robot Schematics Acquired . | . . . Robots Built . | . . . Authchips . | . . . Time . | . . . Total Robot Build Rating . | . . . Part Schematics Acquired . | . . . Parts Built . | . . . Authchips . | . . . Time . | . . . Total Part Build Rating . | . . . Part Studies Acquired . | . . . Parts Repaired . | . . . Time . | . . . Parts Recycled . | . . . Recycled Matter . | . . . Retrieved Matter . | . . . Retrieved Components . | . . . Parts Scanalyzed . | . . . Part Schematics Acquired . | . . . Parts Damaged . | . . . Bothacking | -11 -10 -10 ------------ Run | Yrd Mat Min Used RIF Installer . | . . . Robots Hacked . | . . . Non-combat . | . . . Combat . | . . . Robot Hacks Applied . | . . . Relay Couplers Released . | . . . Fabnet Peak Effective % . | . . . Robots Rewired . | . . . Allies Hacked . | . . . Hacks Repelled . | . . . Allies | -11 -10 -10 -------- Run | Yrd Mat Min Total Allies . | . . . Largest Group . | . . . Highest-Rated Group . | . . . Highest-Rated Ally . | . . . Total Orders . | . . . Ally Attacks . | . . . Total Damage . | . . . Kills . | . . . Allies Corrupted . | . . . Allies Melted . | . . . Intel | -11 -10 -10 ------- Run | Yrd Mat Min Active Infowar (turns) . | . . . Robot Analysis Total . | . . . Derelict Logs Recovered 1 | . . 1 Drone Launches . | . . . Drone Recoveries . | . . . Exploration | -11 -10 -10 ------------- Run | Yrd Mat Min Turns Passed 1270 | 138 709 423 Spaces Moved 1043 | 95 515 433 Core 21 | 18 . 3 Treads . | . . . Legs 620 | 77 515 28 Wheels 402 | . . 402 Hover . | . . . Flight . | . . . Fastest Speed 50 | 50 120 80 Average Speed 106 | 129 120 86 Slowest Speed 300 | 200 120 300 Overloaded Moves . | . . . Propulsion Burnouts . | . . . Robots Hopped . | . . . Potential Cave-ins . | . . . Cave-ins Triggered . | . . . Exploration Rate (%) 34 | 7 48 47 Regions Visited 2 Branch Regions 1 Pre-discovered Areas . | . . . Known Exits Taken . | . . . Unknown Exits Taken 2 | 1 1 . Scrap Searched . | . . . Spaces Dug 9 | . 9 . Terrain Destroyed 118 | . 95 23 Melee . | . . . Projectile . | . . . AOE 118 | . 95 23 Terrain Rammed . | . . . Walls Destroyed . | . . . Machines Disabled . | . . . Actions | -11 -10 -10 --------- Run | Yrd Mat Min Total 1138 | 106 568 464 Wait . | . . . Move 1041 | 94 514 433 Hop . | . . . Pick Up 16 | 6 8 2 Fast Attach 14 | 6 6 2 Attach 8 | . 2 6 Detach 3 | . 2 1 Swap 1 | . 1 . Drop 10 | . 10 . Fire 26 | . 24 2 Melee 7 | . . 7 Ram . | . . . Kick 10 | . 1 9 Crush . | . . . Escape Stasis . | . . . Rewire 2 | . . 2 Trap . | . . . Miscellaneous . | . . . Route ------- -11/Scrapyard -10/Materials (discovered 2 exits: [*Mat] / [*Min]) -10/Mines (discovered 2 exits: [*Mat] / [*Sub]) History --------- Turn | Location | Event 42 | -11/Scrapyard | Discovered new exit (range 14) 139 | -11/Scrapyard | Entered Materials 316 | -10/Materials | Build established: Mutant 494 | -10/Materials | Discovered new exit (range 15) 779 | -10/Materials | Discovered new exit (range 9) 848 | -10/Materials | Entered Mines 901 | -10/Mines | Core integrity fell below 50% 946 | -10/Mines | Lost 5 parts (1p2n2w) 953 | -10/Mines | Discovered new exit (range 7) 962 | -10/Mines | Learned Materials stockpile data 1172 | -10/Mines | Discovered new exit (range 6) 1221 | -10/Mines | Assembled infested the area 1260 | -10/Mines | Core integrity fell below 20% 1271 | -10/Mines | Destroyed by as-16873 with Assembled Heavy Rifle Last Messages --------------- 00969_ T-07 Excavator is excavating. 00983_ Acquired 79 matter. 01005_ K-01 Serf collects debris. 01164_ Acquired Mining Laser. 01172_ EXIT=FOUND 01191_ K-01 Serf collects debris. 01221_ ALERT: Infestation in the mines, dispatching Demolisher response squad. 01236_ Acquired 11 matter. 01254_ Grenade Launcher destroyed. 01254_ System corrupted by crushing effect (+3). 01257_ Destroyed Asb. Hover Unit. 01259_ as-81462 destroyed. 01259_ Grenade Launcher destroyed. 01259_ Destroyed Grenade Launcher. 01259_ as-90396 destroyed. 01263_ Knocked back. 01269_ Wheel destroyed. 01270_ Lgt. Ion Engine destroyed. 01270_ System corrupted by crushing effect (+3). Map ----- +----------------------------------------------------+ | | | | | | | ????????????????????????????????????????? | | ????????????????????????????????????????? | | ????????????????????????????????????????? | | ????????????????????????????????????????? | | ????????????????????????????????????????? | | ????????????????????????????????????????? | | ????????????????????????????????????????? | | ????????????????????????????????????????? | | ????????????????????????????????????????? | | ????????????????????????????????????????? | | ????????????????????????????????????????? | | ????????????????????????????????????????? | | ???????????????????#????????????????????? | | ??????????????????? ????????????????????? | | ??????????????????# #???????????????????? | | ?????## ??????????# #???????????????????? | | ?????# ??????????# #???????????????????? | | ????## ??????????# #???????????????????? | | ???## ??????????# #???????????????????? | | ??## ??????????# ##??????????????????? | | ??# ?????????? #??????????????????? | | ??# ?????##### a #??????????????????? | | ???# ##???# @a #??????????????????? | | ????# ##??# aaa #??????????????????? | | ?????# ##?# #??????????????????? | | ??????# #?# ###??????????????????? | | ???????# #?# ####????????????????????? | | ??????## #?## #???????????????????????? | | ?????## #### #?????????????####??????? | | ????## #?# #???????????### ##?????? | | ???## #?# #??????????## #?????? | | ???# ##?# ##?????????# #?????? | | ???# #??# ##????????# ##?????? | | ???# #?## #????????## #??????? | | ??## ### #?????????## ##?????? | | ??# ##??????????# ##????? | | ??# ##???????????## #????? | | ??## # #######?????????????# ###### | | ???###### #??????????????????## | | ????????# #?????????????????## | | ????????# #????????????????## ##### | | ????##### #???????????????## ### | | ????# #??????????????## | | ????# ### #????????????### | | ????# ??# #????######### ## | | ????# ### #???## ### # | | ???## ##??# ##?# ## | +----------------------------------------------------+ Best States ------------- Heat Dissipation 25 Energy Generation 10 Energy Capacity 125 Matter Stores 291 Matter Capacity 300 Sight Range 16 Terrain Scan Density 10 Utility Shielding 33 Evasion (%) 55 Item Schematics ----------------- None Robot Schematics ------------------ None Fabricated ------------ Nothing Repaired ---------- Nothing Studied --------- None Alien Tech Used ----------------- None Achievements -------------- True Hacker Challenges ------------ None Game ------ Seed LinearActiveSource Manual? 0 Play Time 00:14:10 Cumulative 6.3 hours Start 2026.01.01 @ 21:30:06 End 2026.01.01 @ 21:43:47 Sessions 1 Manual Loads 0 Difficulty Rogue Special Mode None Game No. 7 Rogue 7 Adventurer 0 Explorer 0 Win Type - Total 0 Types 0/0/0/0/0/0/0/0/0/0 Lore% 9 Gallery% 7 Achievement% 11 Wizard Run 0 Options --------- Layout 1 ASCII 0 Keyboard 0 Movement Arrows Keybinds 0 Fullscreen 2 Font 24/Crisp Map View 50x35 Zoom Use 0% Tactical HUD 1 Map Filters NONE Filters NONE Steam 1 RUN: cbc1d565-d2a4-4232-9140-4e29ef380ab8